[Event "*** Titled Tuesday Blitz"]
[Site "Chess.com"]
[Date "2021.03.09"]
[Round "5"]
[White "c_r_e_e_p_e_r"]
[Black "Ze-Pequeno"]
[Result "0-1"]
[WhiteElo "2387"]
[BlackElo "2262"]
[TimeControl "180+1"]
[EndTime "11:01:09 PST"]
[Termination "Ze-Pequeno won on time"]

1. e4 {[%clk 0:03:00.9]} 1... c6 {[%clk 0:02:59.3]} 2. Nc3 {[%clk 0:03:00.7]}
2... d5 {[%clk 0:02:59.4]} 3. Nf3 {[%clk 0:03:01.5]} 3... dxe4 {[%clk
0:02:59.5]} 4. Nxe4 {[%clk 0:03:02.4]} 4... Nd7 {[%clk 0:03:00]} 5. Qe2 {[%clk
0:03:02.1]} 5... Ndf6 {[%clk 0:03:00.1]} 6. d4 {[%clk 0:02:46.4]} 6... Nxe4
{[%clk 0:02:58.5]} 7. Qxe4 {[%clk 0:02:46.4]} 7... Nf6 {[%clk 0:02:59.4]} 8. Qd3
{[%clk 0:02:41.7]} 8... Bg4 {[%clk 0:02:56.4]} 9. Ne5 {[%clk 0:02:40.6]} 9...
Bh5 {[%clk 0:02:49.7]} 10. Bg5 {[%clk 0:02:36.3]} 10... e6 {[%clk 0:02:47.5]}
11. g4 {[%clk 0:02:31.7]} 11... Bg6 {[%clk 0:02:45.3]} 12. Nxg6 {[%clk
0:02:28.7]} 12... hxg6 {[%clk 0:02:43.9]} 13. Bg2 {[%clk 0:02:18.5]} 13... Qa5+
{[%clk 0:02:36.7]} 14. Bd2 {[%clk 0:02:17.9]} 14... Bb4 {[%clk 0:02:30.2]} 15.
c3 {[%clk 0:02:17.8]} 15... Bd6 {[%clk 0:02:25.4]} 16. h3 {[%clk 0:02:06.3]}
16... O-O-O {[%clk 0:02:21.2]} 17. a3 {[%clk 0:02:04.8]} 17... Qc7 {[%clk
0:02:15.3]} 18. O-O-O {[%clk 0:01:50.4]} 18... Bf4 {[%clk 0:02:12.7]} 19. Kb1
{[%clk 0:01:48.1]} 19... Bxd2 {[%clk 0:02:08.6]} 20. Qxd2 {[%clk 0:01:48]} 20...
Kb8 {[%clk 0:01:58.6]} 21. f4 {[%clk 0:01:48.1]} 21... Nd5 {[%clk 0:01:47.6]}
22. Rhf1 {[%clk 0:01:45.3]} 22... Nb6 {[%clk 0:01:43.4]} 23. Qc2 {[%clk
0:01:42]} 23... Rd7 {[%clk 0:01:35.1]} 24. Be4 {[%clk 0:01:31]} 24... Rxh3
{[%clk 0:01:30.6]} 25. f5 {[%clk 0:01:31.1]} 25... gxf5 {[%clk 0:01:26.1]} 26.
gxf5 {[%clk 0:01:31.1]} 26... Rh2 {[%clk 0:01:18.6]} 27. Qb3 {[%clk 0:01:22.1]}
27... e5 {[%clk 0:01:13.8]} 28. f6 {[%clk 0:01:11.3]} 28... g6 {[%clk
0:01:09.7]} 29. Bxg6 {[%clk 0:01:06.2]} 29... exd4 {[%clk 0:01:02.7]} 30. cxd4
{[%clk 0:01:01.3]} 30... Nd5 {[%clk 0:00:48.5]} 31. Bf5 {[%clk 0:01:00.7]} 31...
Rd8 {[%clk 0:00:37.1]} 32. Be4 {[%clk 0:00:53.6]} 32... a6 {[%clk 0:00:29.8]}
33. Rde1 {[%clk 0:00:43]} 33... Nb6 {[%clk 0:00:17.8]} 34. Qe3 {[%clk
0:00:33.8]} 34... Qd6 {[%clk 0:00:15.1]} 35. Bd3 {[%clk 0:00:13.6]} 35... Na4
{[%clk 0:00:12]} 36. Re2 {[%clk 0:00:08.7]} 36... Rxe2 {[%clk 0:00:11.5]} 37.
Bxe2 {[%clk 0:00:08.3]} 37... Qxd4 {[%clk 0:00:12.4]} 38. Qxd4 {[%clk
0:00:07.9]} 38... Rxd4 {[%clk 0:00:12.8]} 39. Bh5 {[%clk 0:00:08.5]} 39... Rd7
{[%clk 0:00:12]} 40. Re1 {[%clk 0:00:08.2]} 40... Kc7 {[%clk 0:00:11.6]} 41. Re7
{[%clk 0:00:08]} 41... Nc5 {[%clk 0:00:11.5]} 42. Rxf7 {[%clk 0:00:07.7]} 42...
Ne4 {[%clk 0:00:10.9]} 43. Rxd7+ {[%clk 0:00:06.9]} 43... Kxd7 {[%clk
0:00:11.8]} 44. f7 {[%clk 0:00:07.6]} 44... Ke7 {[%clk 0:00:12.3]} 45. Kc2
{[%clk 0:00:07.6]} 45... Nf6 {[%clk 0:00:11.1]} 46. Bg6 {[%clk 0:00:08.1]} 46...
Nd7 {[%clk 0:00:10.8]} 47. Kc3 {[%clk 0:00:08.4]} 47... b6 {[%clk 0:00:09.4]}
48. Be4 {[%clk 0:00:07.6]} 48... Ne5 {[%clk 0:00:08.8]} 49. Kd4 {[%clk
0:00:05.6]} 49... Nxf7 {[%clk 0:00:08.7]} 50. Bxc6 {[%clk 0:00:06.2]} 50... Kd6
{[%clk 0:00:09.5]} 51. Bd5 {[%clk 0:00:05.9]} 51... Ne5 {[%clk 0:00:09.8]} 52.
b4 {[%clk 0:00:05.4]} 52... Nd7 {[%clk 0:00:09.1]} 53. Bb7 {[%clk 0:00:05.3]}
53... a5 {[%clk 0:00:09]} 54. b5 {[%clk 0:00:05.7]} 54... Nc5 {[%clk 0:00:08.5]}
55. Bc6 {[%clk 0:00:06.2]} 55... Ne6+ {[%clk 0:00:08.3]} 56. Kc4 {[%clk
0:00:06]} 56... Nc7 {[%clk 0:00:09.2]} 57. a4 {[%clk 0:00:04.4]} 57... Ne6
{[%clk 0:00:10.1]} 58. Bb7 {[%clk 0:00:04.5]} 58... Nc5 {[%clk 0:00:11]} 59. Bc6
{[%clk 0:00:04.7]} 59... Nxa4 {[%clk 0:00:11.1]} 60. Kb3 {[%clk 0:00:04.7]}
60... Nc5+ {[%clk 0:00:12]} 61. Kc4 {[%clk 0:00:05]} 61... Ne6 {[%clk
0:00:12.6]} 62. Kb3 {[%clk 0:00:05]} 62... Nd8 {[%clk 0:00:13.5]} 63. Be4 {[%clk
0:00:03.9]} 63... Ne6 {[%clk 0:00:13.7]} 64. Bc2 {[%clk 0:00:03.1]} 64... Nc5+
{[%clk 0:00:14.6]} 65. Kc4 {[%clk 0:00:03.3]} 65... Ke5 {[%clk 0:00:15.5]} 66.
Bd1 {[%clk 0:00:02.9]} 66... Ne6 {[%clk 0:00:15.9]} 67. Bc2 {[%clk 0:00:03.3]}
67... Nf4 {[%clk 0:00:16.7]} 68. Bd1 {[%clk 0:00:03.6]} 68... Nd5 {[%clk
0:00:17]} 69. Kb3 {[%clk 0:00:01.7]} 69... Nf4 {[%clk 0:00:17.1]} 70. Kc4 {[%clk
0:00:01.9]} 70... Ne6 {[%clk 0:00:16.8]} 71. Kb3 {[%clk 0:00:02.1]} 71... Nd8
{[%clk 0:00:16.8]} 72. Kc4 {[%clk 0:00:02.6]} 72... Nf7 {[%clk 0:00:17.2]} 73.
Kb3 {[%clk 0:00:02.9]} 73... Nd6 {[%clk 0:00:18.1]} 74. Ka4 {[%clk 0:00:02.3]}
74... Kd4 {[%clk 0:00:19]} 75. Be2 {[%clk 0:00:02.4]} 75... Kc5 {[%clk
0:00:19.5]} 76. Bf1 {[%clk 0:00:02.8]} 76... Nf5 {[%clk 0:00:19.6]} 77. Be2
{[%clk 0:00:02.9]} 77... Ne3 {[%clk 0:00:19.9]} 78. Bd3 {[%clk 0:00:02.8]} 78...
Nd1 {[%clk 0:00:19.9]} 79. Bc2 {[%clk 0:00:01.9]} 79... Nc3+ {[%clk 0:00:19.8]}
80. Ka3 {[%clk 0:00:02.2]} 80... Nxb5+ {[%clk 0:00:20.7]} 81. Ka2 {[%clk
0:00:01.9]} 81... Nd4 {[%clk 0:00:20.5]} 82. Bd1 {[%clk 0:00:02.4]} 82... b5
{[%clk 0:00:21.4]} 83. Bg4 {[%clk 0:00:01.6]} 83... b4 {[%clk 0:00:22.3]} 84.
Bd1 {[%clk 0:00:02.1]} 84... Kb5 {[%clk 0:00:22.3]} 85. Bg4 {[%clk 0:00:01.6]}
85... Kc5 {[%clk 0:00:22.4]} 86. Bd1 {[%clk 0:00:01.9]} 86... Nb5 {[%clk
0:00:22.7]} 87. Kb2 {[%clk 0:00:02.3]} 87... Nc3 {[%clk 0:00:23.6]} 88. Bc2
{[%clk 0:00:02.6]} 88... a4 {[%clk 0:00:23.6]} 89. Bd3 {[%clk 0:00:02.6]} 89...
Kd4 {[%clk 0:00:23.6]} 90. Bg6 {[%clk 0:00:01.7]} 90... Nd5 {[%clk 0:00:23.2]}
91. Ka2 {[%clk 0:00:01.8]} 91... Kc3 {[%clk 0:00:22.7]} 92. Bf5 {[%clk
0:00:01.1]} 92... Nb6 {[%clk 0:00:22.5]} 93. Kb1 {[%clk 0:00:01.3]} 93... Nc4
{[%clk 0:00:22.4]} 94. Ka2 {[%clk 0:00:01.9]} 94... b3+ {[%clk 0:00:22.5]} 95.
Kb1 {[%clk 0:00:02.1]} 95... a3 {[%clk 0:00:23.4]} 96. Ka1 {[%clk 0:00:02.4]}
96... a2 {[%clk 0:00:24.3]} 97. Be4 {[%clk 0:00:01.3]} 97... Ne3 {[%clk
0:00:24.4]} 98. Bf5 {[%clk 0:00:01.2]} 98... Nc2+ {[%clk 0:00:24.1]} 0-1

[Event "*** Titled Tuesday Blitz"]
[Site "Chess.com"]
[Date "2021.03.09"]
[Round "5"]
[White "Blazinq"]
[Black "Rud_Makarian"]
[Result "1-0"]
[WhiteElo "2624"]
[BlackElo "2806"]
[TimeControl "180+1"]
[EndTime "11:01:11 PST"]
[Termination "Blazinq won by checkmate"]

1. e4 {[%clk 0:03:00.9]} 1... d5 {[%clk 0:02:58.5]} 2. exd5 {[%clk 0:03:00.3]}
2... Nf6 {[%clk 0:02:45]} 3. d4 {[%clk 0:02:43.3]} 3... Nxd5 {[%clk 0:02:37.4]}
4. Nf3 {[%clk 0:02:40.1]} 4... c6 {[%clk 0:02:29.7]} 5. c4 {[%clk 0:02:38.8]}
5... Nf6 {[%clk 0:02:29.3]} 6. Nc3 {[%clk 0:02:38.5]} 6... Bg4 {[%clk
0:02:28.5]} 7. Be3 {[%clk 0:02:34]} 7... e6 {[%clk 0:02:28.1]} 8. h3 {[%clk
0:02:33.8]} 8... Bxf3 {[%clk 0:02:26.5]} 9. Qxf3 {[%clk 0:02:34.7]} 9... Nbd7
{[%clk 0:02:27.2]} 10. Be2 {[%clk 0:02:29.5]} 10... Bd6 {[%clk 0:02:19.9]} 11.
O-O {[%clk 0:02:27.6]} 11... O-O {[%clk 0:02:20.2]} 12. Rad1 {[%clk 0:02:27.8]}
12... Rc8 {[%clk 0:02:19.4]} 13. Bd3 {[%clk 0:02:17.5]} 13... a6 {[%clk
0:02:09.1]} 14. Bb1 {[%clk 0:02:04.6]} 14... Bb4 {[%clk 0:02:05.8]} 15. Ne4
{[%clk 0:02:00.2]} 15... Nxe4 {[%clk 0:02:04.5]} 16. Qxe4 {[%clk 0:02:01.1]}
16... Nf6 {[%clk 0:02:03.1]} 17. Qh4 {[%clk 0:02:00.4]} 17... Be7 {[%clk
0:01:57.4]} 18. Bg5 {[%clk 0:01:53.2]} 18... g6 {[%clk 0:01:54.2]} 19. Rfe1
{[%clk 0:01:38.5]} 19... Nd5 {[%clk 0:01:47.6]} 20. Bxe7 {[%clk 0:00:55.8]}
20... Nxe7 {[%clk 0:01:43.5]} 21. b3 {[%clk 0:00:39.6]} 21... Nf5 {[%clk
0:01:42.9]} 22. Qf4 {[%clk 0:00:33.4]} 22... Qh4 {[%clk 0:01:42.5]} 23. Qe5
{[%clk 0:00:29.5]} 23... Rfd8 {[%clk 0:01:36.1]} 24. Re4 {[%clk 0:00:28.1]}
24... Qe7 {[%clk 0:01:25]} 25. Ree1 {[%clk 0:00:23.7]} 25... Qd6 {[%clk
0:01:25.2]} 26. Bxf5 {[%clk 0:00:18.4]} 26... Qxe5 {[%clk 0:01:16.1]} 27. Rxe5
{[%clk 0:00:19.3]} 27... gxf5 {[%clk 0:01:14.1]} 28. Rd3 {[%clk 0:00:19.4]}
28... Rd6 {[%clk 0:01:13.7]} 29. d5 {[%clk 0:00:12]} 29... cxd5 {[%clk
0:01:08.3]} 30. cxd5 {[%clk 0:00:12.3]} 30... Rc5 {[%clk 0:01:01]} 31. Rg3+
{[%clk 0:00:07.7]} 31... Kf8 {[%clk 0:00:59.6]} 32. Ree3 {[%clk 0:00:06.3]}
32... Rcxd5 {[%clk 0:00:59.1]} 33. Rc3 {[%clk 0:00:06.8]} 33... Rd1+ {[%clk
0:00:58.9]} 34. Kh2 {[%clk 0:00:07]} 34... R1d2 {[%clk 0:00:59.8]} 35. Rc7
{[%clk 0:00:06.2]} 35... Rxa2 {[%clk 0:00:57]} 36. Rxb7 {[%clk 0:00:06.3]} 36...
Rxf2 {[%clk 0:00:57.8]} 37. Rc3 {[%clk 0:00:03.9]} 37... Kg7 {[%clk 0:00:48.2]}
38. Rcc7 {[%clk 0:00:03.8]} 38... Kf6 {[%clk 0:00:48.9]} 39. Rxf7+ {[%clk
0:00:04.1]} 39... Ke5 {[%clk 0:00:49.6]} 40. Rxh7 {[%clk 0:00:04.5]} 40... f4
{[%clk 0:00:45.3]} 41. Rh5+ {[%clk 0:00:04.2]} 41... Ke4 {[%clk 0:00:45.9]} 42.
Rb4+ {[%clk 0:00:04.4]} 42... Rd4 {[%clk 0:00:46.1]} 43. Rb6 {[%clk 0:00:03.7]}
43... e5 {[%clk 0:00:44.7]} 44. Rxa6 {[%clk 0:00:02.7]} 44... f3 {[%clk
0:00:38.2]} 45. Rg5 {[%clk 0:00:02.1]} 45... Rdd2 {[%clk 0:00:32.8]} 46. Ra4+
{[%clk 0:00:02.6]} 46... Kd3 {[%clk 0:00:33.1]} 47. Rag4 {[%clk 0:00:01.7]}
47... fxg2 {[%clk 0:00:23]} 48. Rg3+ {[%clk 0:00:01.7]} 48... Kc2 {[%clk
0:00:21]} 49. Rxe5 {[%clk 0:00:01.6]} 49... Kb2 {[%clk 0:00:08.9]} 50. Reg5
{[%clk 0:00:02]} 50... Ka3 {[%clk 0:00:06.2]} 51. Rxg2 {[%clk 0:00:02.5]} 51...
Rxg2+ {[%clk 0:00:05.1]} 52. Rxg2 {[%clk 0:00:02.9]} 52... Rd4 {[%clk 0:00:06]}
53. Rg3 {[%clk 0:00:03.6]} 53... Rd2+ {[%clk 0:00:04.7]} 54. Rg2 {[%clk
0:00:04.1]} 54... Rd1 {[%clk 0:00:05.6]} 55. h4 {[%clk 0:00:04.3]} 55... Rd3
{[%clk 0:00:05.5]} 56. Rg3 {[%clk 0:00:04.4]} 56... Rd1 {[%clk 0:00:04.2]} 57.
Kh3 {[%clk 0:00:04.9]} 57... Rh1+ {[%clk 0:00:04.8]} 58. Kg4 {[%clk 0:00:05.3]}
58... Rd1 {[%clk 0:00:05.7]} 59. h5 {[%clk 0:00:05.8]} 59... Kb4 {[%clk
0:00:04.2]} 60. h6 {[%clk 0:00:05.7]} 60... Rd4+ {[%clk 0:00:03.1]} 61. Kg5
{[%clk 0:00:06.1]} 61... Rd5+ {[%clk 0:00:04]} 62. Kg6 {[%clk 0:00:06.7]} 62...
Rd6+ {[%clk 0:00:04.7]} 63. Kh7 {[%clk 0:00:06.9]} 63... Rd7+ {[%clk 0:00:05.3]}
64. Rg7 {[%clk 0:00:07]} 64... Rd6 {[%clk 0:00:05.8]} 65. Rg6 {[%clk 0:00:06.9]}
65... Rd8 {[%clk 0:00:06.4]} 66. Kg7 {[%clk 0:00:06.1]} 66... Rd7+ {[%clk
0:00:06.9]} 67. Kf6 {[%clk 0:00:06.6]} 67... Rd6+ {[%clk 0:00:07.5]} 68. Kf5
{[%clk 0:00:07.1]} 68... Rd5+ {[%clk 0:00:07.8]} 69. Kg4 {[%clk 0:00:06.7]}
69... Rd7 {[%clk 0:00:07]} 70. Rg7 {[%clk 0:00:06.1]} 70... Rd4+ {[%clk
0:00:07.6]} 71. Kh5 {[%clk 0:00:05.4]} 71... Rd5+ {[%clk 0:00:08.2]} 72. Kg6
{[%clk 0:00:05.9]} 72... Rd6+ {[%clk 0:00:08.8]} 73. Kg5 {[%clk 0:00:06]} 73...
Rd5+ {[%clk 0:00:09]} 74. Kg6 {[%clk 0:00:06.3]} 74... Rd6+ {[%clk 0:00:09.4]}
75. Kh7 {[%clk 0:00:07]} 75... Rc6 {[%clk 0:00:08.6]} 76. Rf7 {[%clk 0:00:05]}
76... Rc1 {[%clk 0:00:07.3]} 77. Kg8 {[%clk 0:00:04.2]} 77... Rg1+ {[%clk
0:00:08]} 78. Rg7 {[%clk 0:00:04.5]} 78... Rc1 {[%clk 0:00:07.8]} 79. h7 {[%clk
0:00:05.4]} 79... Rc8+ {[%clk 0:00:08.7]} 80. Kf7 {[%clk 0:00:06.2]} 80... Kxb3
{[%clk 0:00:09.6]} 81. Rg8 {[%clk 0:00:06.1]} 81... Rc7+ {[%clk 0:00:10.5]} 82.
Kg6 {[%clk 0:00:06.7]} 82... Rc6+ {[%clk 0:00:11.4]} 83. Kf5 {[%clk 0:00:06.9]}
83... Rc5+ {[%clk 0:00:12.3]} 84. Ke4 {[%clk 0:00:07.3]} 84... Rc4+ {[%clk
0:00:13.2]} 85. Kd5 {[%clk 0:00:07.8]} 85... Rc1 {[%clk 0:00:11.3]} 86. h8=Q
{[%clk 0:00:08.7]} 86... Rd1+ {[%clk 0:00:12.2]} 87. Ke4 {[%clk 0:00:08.6]}
87... Re1+ {[%clk 0:00:12.5]} 88. Kf3 {[%clk 0:00:09.1]} 88... Rc1 {[%clk
0:00:13.1]} 89. Rb8+ {[%clk 0:00:06.6]} 89... Kc2 {[%clk 0:00:13.8]} 90. Rc8+
{[%clk 0:00:06.6]} 90... Kd2 {[%clk 0:00:14.3]} 91. Rxc1 {[%clk 0:00:06.7]}
91... Kd3 {[%clk 0:00:15.2]} 92. Qd8# {[%clk 0:00:06.3]} 1-0

[Event "*** Titled Tuesday Blitz"]
[Site "Chess.com"]
[Date "2021.03.09"]
[Round "5"]
[White "GoltsevDmitry2000"]
[Black "S-Fazulyanov"]
[Result "1/2-1/2"]
[WhiteElo "2713"]
[BlackElo "2549"]
[TimeControl "180+1"]
[EndTime "11:01:30 PST"]
[Termination "Game drawn - insufficient material"]

1. e4 {[%clk 0:02:59.1]} 1... c5 {[%clk 0:03:00]} 2. Nf3 {[%clk 0:02:58.9]} 2...
Nc6 {[%clk 0:02:59.5]} 3. d4 {[%clk 0:02:58.9]} 3... cxd4 {[%clk 0:02:38.7]} 4.
Nxd4 {[%clk 0:02:59.8]} 4... g6 {[%clk 0:02:37.5]} 5. c3 {[%clk 0:02:56.1]} 5...
Bg7 {[%clk 0:02:37]} 6. Be2 {[%clk 0:02:55.7]} 6... Nf6 {[%clk 0:02:37]} 7. Nd2
{[%clk 0:02:53.4]} 7... O-O {[%clk 0:02:35.9]} 8. O-O {[%clk 0:02:53.1]} 8... d5
{[%clk 0:02:35]} 9. exd5 {[%clk 0:02:51.4]} 9... Nxd4 {[%clk 0:02:28.3]} 10.
cxd4 {[%clk 0:02:52.3]} 10... Nxd5 {[%clk 0:02:28.1]} 11. Nb3 {[%clk 0:02:52.5]}
11... Bd7 {[%clk 0:02:20.8]} 12. Nc5 {[%clk 0:02:51.1]} 12... Bc6 {[%clk
0:02:20.6]} 13. Bf3 {[%clk 0:02:51.3]} 13... Qb6 {[%clk 0:02:00.5]} 14. a3
{[%clk 0:02:48.7]} 14... Rad8 {[%clk 0:01:59.3]} 15. Re1 {[%clk 0:02:41]} 15...
e5 {[%clk 0:01:52.5]} 16. b4 {[%clk 0:02:33.3]} 16... exd4 {[%clk 0:01:45.4]}
17. Bg5 {[%clk 0:02:33.1]} 17... Rd6 {[%clk 0:01:10]} 18. Qb3 {[%clk 0:02:25.8]}
18... h6 {[%clk 0:01:06.7]} 19. Bh4 {[%clk 0:02:23.6]} 19... g5 {[%clk
0:01:03.2]} 20. Bg3 {[%clk 0:02:23.9]} 20... Rdd8 {[%clk 0:01:03.9]} 21. Bh5
{[%clk 0:02:15.9]} 21... Nf6 {[%clk 0:01:00.5]} 22. Be2 {[%clk 0:02:13.4]} 22...
Bd5 {[%clk 0:01:00.7]} 23. Qc2 {[%clk 0:02:08.6]} 23... Qc6 {[%clk 0:00:59.5]}
24. f3 {[%clk 0:02:03.6]} 24... b6 {[%clk 0:00:59.8]} 25. Bd3 {[%clk 0:01:42.4]}
25... bxc5 {[%clk 0:00:59.2]} 26. bxc5 {[%clk 0:01:43.3]} 26... Rc8 {[%clk
0:00:58.8]} 27. Rac1 {[%clk 0:01:42.7]} 27... Nd7 {[%clk 0:00:56.7]} 28. Bd6
{[%clk 0:01:42.8]} 28... Rfe8 {[%clk 0:00:57.1]} 29. Red1 {[%clk 0:01:40.3]}
29... Ne5 {[%clk 0:00:55.3]} 30. Bf5 {[%clk 0:01:37.9]} 30... Be6 {[%clk
0:00:52.6]} 31. Be4 {[%clk 0:01:37.6]} 31... Bd5 {[%clk 0:00:52.6]} 32. Bf5
{[%clk 0:01:37.7]} 32... Rcd8 {[%clk 0:00:53]} 33. Kh1 {[%clk 0:01:33.4]} 33...
Be6 {[%clk 0:00:50.5]} 34. Be4 {[%clk 0:01:33.4]} 34... Bd5 {[%clk 0:00:50.9]}
35. Rxd4 {[%clk 0:01:31.8]} 35... Bxe4 {[%clk 0:00:49.5]} 36. Rxe4 {[%clk
0:01:32.7]} 36... Ng6 {[%clk 0:00:45.8]} 37. Rc4 {[%clk 0:01:29.5]} 37... Rc8
{[%clk 0:00:46.1]} 38. Qf5 {[%clk 0:01:28.5]} 38... Ne5 {[%clk 0:00:41.2]} 39.
R4c2 {[%clk 0:01:25.6]} 39... Nd7 {[%clk 0:00:38.9]} 40. h4 {[%clk 0:01:24.3]}
40... gxh4 {[%clk 0:00:36.7]} 41. Rc4 {[%clk 0:01:24.6]} 41... Re6 {[%clk
0:00:35.8]} 42. Rd1 {[%clk 0:01:17.8]} 42... Rce8 {[%clk 0:00:34.6]} 43. Rxh4
{[%clk 0:01:08.7]} 43... Re1+ {[%clk 0:00:32.6]} 44. Rxe1 {[%clk 0:01:09.1]}
44... Rxe1+ {[%clk 0:00:32.5]} 45. Kh2 {[%clk 0:01:10]} 45... Be5+ {[%clk
0:00:24.9]} 46. Bxe5 {[%clk 0:00:50.2]} 46... Rxe5 {[%clk 0:00:25.8]} 47. Rg4+
{[%clk 0:00:51.1]} 47... Kf8 {[%clk 0:00:26]} 48. Qh7 {[%clk 0:00:51.3]} 48...
Rh5+ {[%clk 0:00:26.1]} 49. Kg3 {[%clk 0:00:48.1]} 49... Qc7+ {[%clk 0:00:24.7]}
50. f4 {[%clk 0:00:43.9]} 50... Nf6 {[%clk 0:00:23.7]} 51. Qg7+ {[%clk
0:00:33.5]} 51... Ke7 {[%clk 0:00:23.4]} 52. Rg6 {[%clk 0:00:34]} 52... Qc6
{[%clk 0:00:16.9]} 53. Rxh6 {[%clk 0:00:30]} 53... Rxh6 {[%clk 0:00:17.5]} 54.
Qxh6 {[%clk 0:00:30.9]} 54... Qxc5 {[%clk 0:00:18.1]} 55. Kh4 {[%clk 0:00:26.1]}
55... Qf5 {[%clk 0:00:17.1]} 56. Kg3 {[%clk 0:00:21.6]} 56... Qg4+ {[%clk
0:00:16.4]} 57. Kf2 {[%clk 0:00:21.7]} 57... Qd1 {[%clk 0:00:16.6]} 58. Qg5
{[%clk 0:00:20.4]} 58... Qd2+ {[%clk 0:00:16.6]} 59. Kg3 {[%clk 0:00:19.3]}
59... Qc3+ {[%clk 0:00:16.7]} 60. Kh4 {[%clk 0:00:18.9]} 60... Kf8 {[%clk
0:00:17.2]} 61. Qh6+ {[%clk 0:00:15.7]} 61... Ke7 {[%clk 0:00:17.7]} 62. Qg5
{[%clk 0:00:16.1]} 62... Qd4 {[%clk 0:00:18.2]} 63. g3 {[%clk 0:00:13.9]} 63...
Ke6 {[%clk 0:00:18.7]} 64. Qa5 {[%clk 0:00:12.6]} 64... Qb6 {[%clk 0:00:17.7]}
65. Qe5+ {[%clk 0:00:11.7]} 65... Kd7 {[%clk 0:00:18.6]} 66. a4 {[%clk
0:00:10.4]} 66... Qe6 {[%clk 0:00:18.6]} 67. Qb5+ {[%clk 0:00:10.3]} 67... Ke7
{[%clk 0:00:19.2]} 68. Qc5+ {[%clk 0:00:09.9]} 68... Ke8 {[%clk 0:00:19.8]} 69.
Qb5+ {[%clk 0:00:10.1]} 69... Kf8 {[%clk 0:00:20.4]} 70. Qc5+ {[%clk 0:00:09.9]}
70... Ke8 {[%clk 0:00:20.6]} 71. Qb5+ {[%clk 0:00:10.2]} 71... Ke7 {[%clk
0:00:21.2]} 72. Qc5+ {[%clk 0:00:10.5]} 72... Kd8 {[%clk 0:00:21.8]} 73. Qd4+
{[%clk 0:00:08.4]} 73... Kc7 {[%clk 0:00:21.8]} 74. Qc5+ {[%clk 0:00:08.7]}
74... Kb8 {[%clk 0:00:22]} 75. Qb5+ {[%clk 0:00:07.8]} 75... Ka8 {[%clk
0:00:22.5]} 76. Qg5 {[%clk 0:00:06.8]} 76... a6 {[%clk 0:00:20.5]} 77. Qg7
{[%clk 0:00:06.5]} 77... Kb7 {[%clk 0:00:20.9]} 78. a5 {[%clk 0:00:06.6]} 78...
Kc6 {[%clk 0:00:20.6]} 79. g4 {[%clk 0:00:06.8]} 79... Kb5 {[%clk 0:00:21.1]}
80. Qg5+ {[%clk 0:00:06.5]} 80... Ka4 {[%clk 0:00:21]} 81. Qg7 {[%clk
0:00:03.3]} 81... Kxa5 {[%clk 0:00:19.8]} 82. Kg5 {[%clk 0:00:03.8]} 82... Kb6
{[%clk 0:00:20.7]} 83. Qxf6 {[%clk 0:00:04]} 83... Qxf6+ {[%clk 0:00:21.1]} 84.
Kxf6 {[%clk 0:00:04.9]} 84... a5 {[%clk 0:00:22]} 85. Kxf7 {[%clk 0:00:05.5]}
85... a4 {[%clk 0:00:22.9]} 86. g5 {[%clk 0:00:06.4]} 86... a3 {[%clk
0:00:23.8]} 87. g6 {[%clk 0:00:07.3]} 87... a2 {[%clk 0:00:24.7]} 88. g7 {[%clk
0:00:08.2]} 88... a1=Q {[%clk 0:00:25.3]} 89. g8=Q {[%clk 0:00:09.1]} 89... Qa2+
{[%clk 0:00:25.6]} 90. Kg7 {[%clk 0:00:09.1]} 90... Qb2+ {[%clk 0:00:26.1]} 91.
Kg6 {[%clk 0:00:09.2]} 91... Qg2+ {[%clk 0:00:26.3]} 92. Kf7 {[%clk 0:00:08.7]}
92... Qd5+ {[%clk 0:00:26.4]} 93. Kg7 {[%clk 0:00:08]} 93... Qd4+ {[%clk
0:00:25.3]} 94. Kh7 {[%clk 0:00:05.9]} 94... Qxf4 {[%clk 0:00:25.9]} 95. Qg6+
{[%clk 0:00:06.4]} 95... Kc5 {[%clk 0:00:25.4]} 96. Qg7 {[%clk 0:00:06.8]} 96...
Qe4+ {[%clk 0:00:24.9]} 97. Qg6 {[%clk 0:00:06.5]} 97... Qxg6+ {[%clk 0:00:25]}
98. Kxg6 {[%clk 0:00:07.4]} 1/2-1/2